Cogmind - Beta 10.2 @@@ ROGUE MODE // 2021.07.17 @ 15:30:58 Player: User Result: Destroyed by Y-45 Defender with Beam Rifle Performance ------------- Evolutions (2) 1000 Regions Visited (3) 600 Robots Destroyed (22) 110 Value Destroyed (709) 709 Prototype IDs (7) 140 Alien Tech Used (0) 0 Bonus (0) 0 TOTAL SCORE: 2559 Bonus ------- None Cogmind --------- Core Integrity 0/550 Matter 300/300 Energy 100/100 System Corruption 0% Temperature Cool (9) Movement Core (300) Ox5 Location -8/Materials Parts ------- > --- POWER (2) -------- (None) > --- PROPULSION (3) --- (None) > --- UTILITY (4) ------ Large Storage Unit > --- WEAPON (2) ------- (None) > --- INVENTORY (10) --- Armored Wheel Small Matter Pod (50) Weight Redist. System Recoil Stabilizer Peak State ------------ > --- POWER ------------ Light Ion Engine Light Deuterium Engine > --- PROPULSION ------- Armored Wheel Armored Wheel Armored Wheel > --- UTILITY ---------- Large Storage Unit Weight Redist. System Light Armor Plating Hardened Light Armor Plating > --- WEAPON ----------- Light EM Pulse Cannon Heavy Assault Rifle > --- INVENTORY -------- Ion Engine Light Ion Engine Light Treads Light Treads Small Matter Pod Recoil Stabilizer Light EM Pulse Cannon Heavy Assault Rifle [Rating: 21] Favorites ----------- Power Ion Engine Engine Ion Engine Propulsion Armored Wheel Treads Advanced Treads Leg Aluminum Leg Wheel Armored Wheel Hover Unit Backup Propulsion I Utility Large Storage Unit Device Weight Redist. System Storage Large Storage Unit Protection Light Armor Plating Weapon Heavy Assault Rifle Energy Gun Small Laser Energy Cannon Light EM Pulse Cannon Ballistic Gun Heavy Assault Rifle Special Weapon Mining Laser Build | -11 -10 -9 -8 ------- Run | Scr Mat Mat Mat Slots Evolved 4 | . . 2 2 Power 1 | . . . 1 Propulsion 1 | . . 1 . Utility 2 | . . 1 1 Weapon . | . . . . Parts Attached 34 | 6 1 13 14 Power 6 | 1 . 1 4 Engine 6 | 1 . 1 4 Core . | . . . . Reactor . | . . . . Propulsion 9 | 2 . 4 3 Treads 3 | . . . 3 Leg 3 | 2 . 1 . Wheel 3 | . . 3 . Hover . | . . . . Flight . | . . . . Utility 7 | 1 1 3 2 Device 1 | . . . 1 Storage 2 | 1 1 . . Processor . | . . . . Hackware . | . . . . Protection 4 | . . 3 1 Artifact . | . . . . Weapon 12 | 2 . 5 5 Energy Gun 4 | 1 . 3 . Energy Cannon 3 | . . . 3 Ballistic Gun 4 | 1 . 2 1 Ballistic Cannon . | . . . . Launcher . | . . . . Special Weapon 1 | . . . 1 Impact Weapon . | . . . . Slashing Weapon . | . . . . Piercing Weapon . | . . . . Special Melee Weapon . | . . . . Unidentified Prototypes 1 | . . 1 . Parts Lost 19 | . . 2 17 Power 4 | . . . 4 Propulsion 7 | . . 2 5 Utility 3 | . . . 3 Weapon 5 | . . . 5 Highest Loss Streak 17 | . . 2 17 Average Slot Usage (%) 82 | . 85 83 76 Engine 12 | . 14 11 13 Treads 1 | . . . 4 Leg 9 | . 28 7 . Wheel 14 | . . 15 21 Hover 1 | . . 3 . Storage 11 | . 14 11 9 Protection 10 | . . 12 12 Energy Gun 7 | . 14 7 2 Energy Cannon 1 | . . . 4 Ballistic Gun 12 | . 14 14 6 Naked Turns . | . . . . Heaviest Build 41 | 10 22 35 41 Greatest Support 66 | 20 20 36 66 Greatest Overweight (x) 5 | 1 1 2 5 Average Overweight (x) . | . . . . Largest Inventory Capacity 12 | 6 12 10 10 Average Capacity 9 | 5 6 10 10 Most Carried 10 | 5 4 10 10 Average Carried 5 | 1 2 6 6 Final Capacity 10 | 6 10 10 10 Final Carried 9 | 2 3 9 4 Class Distribution -------------------- 79% | Mutant 20% | Scavenger-Mutant Dominant Class ---------------- Mutant | -10/Materials Mutant | -9/Materials Mutant | -8/Materials Resources | -11 -10 -9 -8 ----------- Run | Scr Mat Mat Mat Matter Collected 690 | 180 43 338 129 Remotely . | . . . . Salvage Created 935 | . 85 439 411 Parts 46 | . 2 30 14 Haulers Intercepted 1 | . . 1 . Recyclers Shooed 3 | . . 3 . Parts Field Recycled . | . . . . Retrieved Matter . | . . . . Parts Self-Destructed . | . . . . Prevented . | . . . . Kills | -11 -10 -9 -8 ------- Run | Scr Mat Mat Mat Combat Hostiles Destroyed 18 | . 2 8 8 Melee 4 | . . . 4 Guns 11 | . 2 8 1 Cannons 3 | . . . 3 Classes Destroyed 8 | . 1 5 2 Worker 1 | . . 1 . Hauler 1 | . . 1 . Recycler 1 | . . 1 . Watcher 1 | . . . 1 Swarmer 4 | . . 4 . Grunt 9 | . 2 . 7 Sentry 4 | . . 4 . Hunter 1 | . . . 1 Best Kill Streak 4 | . 2 4 4 Combat Bots Only 4 | . 2 4 4 Max Kills in Single Turn 1 | . 1 1 1 Gunslinging . | . . . . Exploded . | . . . . Melee 1 | . . . 1 Uniques/NPCs Destroyed . | . . . . Combat | -11 -10 -9 -8 -------- Run | Scr Mat Mat Mat Damage Taken 3079 | . 166 561 2352 Core 649 | . 10 89 550 Absorbed by Shields . | . . . . Core Remaining (%) 91 | 100 96 77 . Volleys Fired 65 | . 6 36 23 Largest 2 | . 2 2 2 Hottest 112 | . 60 79 112 Shots Fired 124 | . 12 72 40 Gun 104 | . 12 72 20 Cannon 20 | . . . 20 Launcher . | . . . . Special . | . . . . Kinetic 75 | . 6 50 19 Thermal 19 | . 6 13 . Explosive . | . . . . Electromagnetic 30 | . . 9 21 Robot Hit Streak 9 | . 6 7 9 Robot Miss Streak 7 | . 1 7 4 Penetration Max . | . . . . Secondary Targets 3 | . 1 2 . Max Gunslinging Chain 1 | . 1 1 . Shots Hit Robots 76 | . 9 43 24 Core Hits 41 | . 4 17 20 Critical Hits . | . . . . Critical Kills . | . . . . Critical Parts Destroyed . | . . . . Melee Attacks . | . . . . Impact . | . . . . Slashing . | . . . . Piercing . | . . . . Sneak Attacks . | . . . . Combat Hostiles . | . . . . Follow-up Attacks . | . . . . Damage Inflicted 1287 | . 104 578 605 Guns 857 | . 104 566 187 Cannons 382 | . . . 382 Explosions . | . . . . Melee . | . . . . Ramming 48 | . . 12 36 Kinetic 636 | . 46 403 187 Thermal 187 | . 58 129 . Explosive . | . . . . Electromagnetic 416 | . . 34 382 Impact . | . . . . Slashing . | . . . . Piercing . | . . . . Highest Corruption . | . . . . Average Corruption . | . . . . Corruption Purged . | . . . . Overload Shots . | . . . . Overflow Damage 21 | . . . 21 Projectiles 21 | . . . 21 Explosions . | . . . . Melee . | . . . . Knockbacks . | . . . . Impact . | . . . . Kinetic . | . . . . Secondary . | . . . . Self-Inflicted Damage 6 | . . 6 . Shots . | . . . . Rammed 15 | . . 1 14 Targets Rammed 19 | . . 1 18 Kicked . | . . . . Crushed 4 | . . . 4 Highest Temperature 512 | . 54 162 512 Average Temperature 135 | . 35 43 229 Received Heat Transfer 1017 | . 90 117 810 Effects 11 | . . . 11 Shutdowns 4 | . . . 4 Interference 2 | . . . 2 Short Circuit 1 | . . . 1 Damage (minor) 3 | . . . 3 Damage (major) 1 | . . . 1 Siege Activations . | . . . . Robots Corrupted . | . . . . Combat Hostiles . | . . . . Parts Fried 1 | . . . 1 Impact Corruptions . | . . . . Robots Melted . | . . . . Combat Hostiles . | . . . . Parts Melted 1 | . 1 . . Heat Transferred 458 | . 125 333 . Parts Sabotaged . | . . . . Parts Stolen . | . . . . Parts Stripped . | . . . . Power Chain Reactions . | . . . . Missiles Intercepted . | . . . . Alert | -11 -10 -9 -8 ------- Run | Scr Mat Mat Mat Peak Influence 340 | . 54 340 157 Initial 65 | . . 22 65 Average 113 | . 13 172 91 Maximum Alert Level 1 | . . 1 . Low Security (%) 80 | 100 100 62 100 Level 1 19 | . . 37 . Level 2 . | . . . . Level 3 . | . . . . Level 4 . | . . . . Level 5 . | . . . . High Security . | . . . . Max Security . | . . . . Squads Dispatched 3 | . 2 . 1 Investigation 2 | . 2 . . Extermination . | . . . . Reinforcement 1 | . . . 1 Assault . | . . . . Garrison . | . . . . Intercept . | . . . . Construction Impeded . | . . . . Haulers Reinforced . | . . . . Stealth | -11 -10 -9 -8 --------- Run | Scr Mat Mat Mat Distress Signals 3 | . . . 3 Communications Jammed . | . . . . Distress Signals . | . . . . Times Spotted 34 | . 5 12 17 Peak Tracking Total 8 | . 3 4 8 Tactical Retreats . | . . . . Traps | -11 -10 -9 -8 ------- Run | Scr Mat Mat Mat Traps Triggered 2 | . 2 . . Indirectly . | . . . . Trap Hack Attempts . | . . . . Triggered . | . . . . Disarmed . | . . . . Reprogrammed . | . . . . Reused . | . . . . Traps Extracted . | . . . . Installed . | . . . . Triggered . | . . . . Machines | -11 -10 -9 -8 ---------- Run | Scr Mat Mat Mat Machines Disabled . | . . . . Max in Single Turn . | . . . . Machines Sabotaged . | . . . . Garrisons Compromised . | . . . . Overloaded Fab Kills . | . . . . Fab Network Shutdowns . | . . . . Hacking | -11 -10 -9 -8 --------- Run | Scr Mat Mat Mat Machines Accessed 8 | . 3 5 . Terminals 5 | . 2 3 . Fabricators . | . . . . Repair Stations 2 | . . 2 . Recycling Units 1 | . 1 . . Scanalyzers . | . . . . Garrison Access . | . . . . Total Hacks 19 | . 6 13 . Successful 17 | . 5 12 . Failed 2 | . 1 1 . Catastrophic . | . . . . Database Lockouts . | . . . . Manual . | . . . . Terminals 15 | . 5 10 . Fabricators . | . . . . Repair Stations 3 | . . 3 . Recycling Units 1 | . 1 . . Scanalyzers . | . . . . Garrison Access . | . . . . Terminal Hacks 13 | . 4 9 . Record 2 | . . 2 . Prototype ID Bank 3 | . 1 2 . Emergency Access Points 1 | . 1 . . Scanalyzer Index 1 | . . 1 . Alert Level 2 | . 1 1 . Locate Traps 1 | . . 1 . Dispatch Records 1 | . . 1 . Recall Investigation 1 | . 1 . . Hauler Manifests 1 | . . 1 . Fabricator Hacks . | . . . . Repair Station Hacks 3 | . . 3 . Scan Component 1 | . . 1 . Repair 1 | . . 1 . Refit 1 | . . 1 . Recycling Unit Hacks 1 | . 1 . . Report Inventory 1 | . 1 . . Scanalyzer . | . . . . Garrison Access Hacks . | . . . . Unauthorized Hacks . | . . . . Terminals . | . . . . Fabricators . | . . . . Repair Stations . | . . . . Recycling Units . | . . . . Scanalyzers . | . . . . Garrison Access . | . . . . Data Cores Recovered . | . . . . Used . | . . . . Hacking Detections 5 | . . 5 . Full Trace Events . | . . . . Feedback Events . | . . . . Feedback Blocked . | . . . . Robot Schematics Acquired . | . . . . Robots Built . | . . . . Matter . | . . . . Time . | . . . . Total Robot Build Rating . | . . . . Part Schematics Acquired . | . . . . Parts Built . | . . . . Matter . | . . . . Time . | . . . . Total Part Build Rating . | . . . . Parts Repaired 1 | . . 1 . Time 26 | . . 26 . Parts Recycled . | . . . . Recycled Matter . | . . . . Retrieved Matter . | . . . . Retrieved Components . | . . . . Parts Scanalyzed . | . . . . Part Schematics Acquired . | . . . . Parts Damaged . | . . . . Bothacking | -11 -10 -9 -8 ------------ Run | Scr Mat Mat Mat Used RIF Installer . | . . . . Robots Hacked . | . . . . Non-combat . | . . . . Combat . | . . . . Robot Hacks Applied . | . . . . Relay Couplers Released . | . . . . Robots Rewired . | . . . . Allies Hacked . | . . . . Hacks Repelled . | . . . . Allies | -11 -10 -9 -8 -------- Run | Scr Mat Mat Mat Total Allies . | . . . . Largest Group . | . . . . Highest-Rated Group . | . . . . Highest-Rated Ally . | . . . . Total Orders . | . . . . Ally Attacks . | . . . . Total Damage . | . . . . Kills . | . . . . Allies Corrupted . | . . . . Allies Melted . | . . . . Intel | -11 -10 -9 -8 ------- Run | Scr Mat Mat Mat Robot Analysis Total . | . . . . Derelict Logs Recovered . | . . . . Drone Launches . | . . . . Drone Recoveries . | . . . . Exploration | -11 -10 -9 -8 ------------- Run | Scr Mat Mat Mat Turns Passed 898 | 67 151 465 215 Spaces Moved 482 | 48 100 247 87 Core 12 | 9 . . 3 Treads 7 | . . . 7 Legs 221 | 39 100 82 . Wheels 242 | . . 165 77 Hover . | . . . . Flight . | . . . . Fastest Speed 50 | 50 120 90 90 Average Speed 115 | 112 123 118 103 Slowest Speed 300 | 120 150 180 300 Overloaded Moves . | . . . . Propulsion Burnouts . | . . . . Robots Hopped . | . . . . Cave-ins Triggered . | . . . . Exploration Rate (%) 16 | 3 28 23 13 Regions Visited 3 Branch Regions . Pre-discovered Areas . | . . . . Known Exits Taken . | . . . . Unknown Exits Taken 3 | 1 1 1 . Scrap Searched . | . . . . Spaces Dug . | . . . . Terrain Destroyed . | . . . . Melee . | . . . . Projectile . | . . . . AOE . | . . . . Terrain Rammed . | . . . . Walls Destroyed . | . . . . Machines Disabled . | . . . . Actions | -11 -10 -9 -8 --------- Run | Scr Mat Mat Mat Total 693 | 61 116 353 163 Wait 44 | . 7 26 11 Move 479 | 47 99 246 87 Hop . | . . . . Pick Up 38 | 8 2 21 7 Fast Attach . | . . . . Attach 22 | 6 1 5 10 Detach . | . . . . Swap 12 | . . 8 4 Drop 14 | . 1 10 3 Fire 65 | . 6 36 23 Melee . | . . . . Ram 1 | . . . 1 Kick 1 | . . 1 . Crush 17 | . . . 17 Escape Stasis . | . . . . Rewire . | . . . . Trap . | . . . . Miscellaneous . | . . . . Route ------- -11/Scrapyard -10/Materials -9/Materials -8/Materials History --------- Turn | Location | Event 15 | -11/Scrapyard | Discovered new exit (range 15) 68 | -11/Scrapyard | Entered Materials 169 | -10/Materials | Discovered new exit (range 13) 219 | -10/Materials | Entered another Materials area 219 | -9/Materials | Evolved 2 slots: Propulsion x1, Utility x1 300 | -9/Materials | Build established: Mutant 590 | -9/Materials | Repaired Lgt. Armor Plating 671 | -9/Materials | Discovered new exit (range 16) 684 | -9/Materials | Entered another Materials area 684 | -8/Materials | Evolved 2 slots: Power x1, Utility x1 887 | -8/Materials | Core integrity fell below 50% 896 | -8/Materials | Core integrity fell below 20% 899 | -8/Materials | Destroyed by Y-45 Defender with Beam Rifle Last Messages --------------- O-24 Administrator destroyed. K-01 Serf collects debris. R-06 Scavenger inserts Aluminum Leg into recycling unit. Acquired 10 matter. U-05 Engineer lays Concrete. Adv. Treads destroyed. K-01 Serf collects debris. Mining Laser destroyed. R-06 Scavenger inserts Lgt. Treads into recycling unit. K-01 Serf collects debris. R-06 Scavenger inserts Lgt. Treads into recycling unit. K-01 Serf collects debris. Penetrated by Slug. K-01 Serf collects debris. R-06 Scavenger inserts Wheel into recycling unit. Recycling unit begins recycling process. K-01 Serf collects debris. Slammed into K-01 Serf. Penetrated by Slug. K-01 Serf collects debris. Map ----- +----------------------------------------------------+ | ?????????????????????????????????????????????????? | | ?????????????????????????????????????????????????? | | ?????????????????????????????????????????????????? | | ?????????????????????????????????????????????????? | | ?????????????????????????????????????????????????? | | ?????????????????????????????????????????????????? | | ???????? ?#######???????????????????????????????? | | ???????? ## ???????????????????????????????? | | ???????? ## "???????????????????????????????? | | ####??## ## "??????????????? #??????????????? | | " """ ## ## ""#?#####?#????? +??????????????? | | " """ ## ## """#? ????? #??????????????? | | " """ ## ## "" # | #?? #??????????????? | | ## ## """# """ #?? #??????????????? | | ## ## """#"""k """ #?? #??????????????? | | ## ## """#"R """ ?? #???"#?????????? | | ??# ## " #""" ??? #??T"#?????????? | | ????# ## #? ????? ##" "###???????? | | +####### ####+########/####### #???????? | | k !%! = #???????? | | a u!*%[% % #???????? | | [ [%% =u % #???????? | | +#############/#######!%k! % ???????? | | ???????# #?#%%%% ???????? | | [#?????# #?#!uwk ??????? | | #?????# #?#k Y@! #???????? | | """ #?????# #?#Y uu r #???????? | | """ #?????# !!! #?# * Y" ##"Y"# #???????? | | """ #?????# !!! #?# """ #?"""#?? #???????? | | """ #?????# ! #?# #####+####??###???????????? | | ""? #?????# [ #?# #???? ???????????????????? | | ????#?????# #?# #????= ??????????????????? | | ??????????##########?# #???? ?????????????????? | | ?????????????????????# #????? ?????????????????? | | ?????????????????????# #?????! #????????????????? | | ?????????????????????# #?????! #????????????????? | | ?????????????????????# #?????! #????????????????? | | ?????????????????????# #?????? ?#????????????????? | | ?????????????????????? ??????????????????????????? | | ?????????????????????? ??????????????????????????? | | ?????????????????????? ??????????????????????????? | | ?????????????????????? ??????????????????????????? | | ?????????????????????? ??????????????????????????? | | ?????????????????????? ??????????????????????????? | | ??????????????????????#??????????????????????????? | | ?????????????????????????????????????????????????? | | ?????????????????????????????????????????????????? | | ?????????????????????????????????????????????????? | | ?????????????????????????????????????????????????? | | ?????????????????????????????????????????????????? | +----------------------------------------------------+ Best States ------------- Heat Dissipation 31 Energy Generation 19 Energy Capacity 275 Matter Stores 300 Matter Capacity 300 Sight Range 16 Terrain Scan Density 10 Additional Mass Support 6 Armor Coverage 300 Propulsion Shielding 33 Evasion (%) 42 Recoil Reduction 3 Item Schematics ----------------- None Robot Schematics ------------------ None Fabricated ------------ Nothing Alien Tech Used ----------------- None Achievements -------------- None Challenges ------------ None Game ------ Seed HardcellOpticalPit Manual? 0 Play Time 00:15:01 Cumulative 13.3 hours Start 2021.07.17 @ 15:17:37 End 2021.07.17 @ 15:30:58 Sessions 1 Manual Loads 0 Difficulty Rogue Special Mode None Game No. 26 Rogue 26 Adventurer 0 Explorer 0 Win Type - Total 0 Types 0/0/0/0/0/0/0/0/0 Lore% 19 Gallery% 21 Achievement% 16 Wizard Run 0 Options --------- ASCII 0 Keyboard 0 Movement Mouse Keybinds 0 Fullscreen 1 Font 20/Terminus Map View 66x50 Tactical HUD 0 Map Filters NONE Filters NONE Steam 1 RUN: 4899f6d0-5f1e-4698-888d-4de536c3ff6f